[Event "European Women-ch 2023"]
[Site "Petrovac"]
[Date "2023.03.25"]
[Round "7.7"]
[White "Tsirulnik, Maritsa"]
[Black "Silva, Ana Ines Teixeira Da"]
[Result "1/2-1/2"]
[Annotator "TA"]
[ECO "E04"]
[WhiteElo "2121"]
[BlackElo "1792"]
[PlyCount "64"]
[EventDate "2023.03.15"]
[EventType "swiss"]
[EventCountry "MNE"]
[SourceTitle "playchess.com"]
[Source "ChessBase"]
[SourceQuality "1"]
[TimeControl "40/5400+30:1800+30"]

{[%evp 19,64,-22,14,14,7,24,34,0,0,-20,0,0,17,0,22,10,6,6,3,6,9,0,0,0,0,0,0,0,0,0,0,0,0,0,0,0,0,0,0,0,0,0,0,0,0,0,0]} 1. d4 {[%emt 0:00:02]} d5 {[%emt 0:00:24]} 2. c4 {[%emt 0:00:07]} e6 {[%emt 0:00:07]} 3. Nf3 {[%emt 0:00:06]} Nf6 {[%emt 0:00:21]} 4. g3 {[%emt 0:00:06]} dxc4 {[%emt 0:00:12]} 5. Bg2 {[%emt 0:00:13]} c5 {[%emt 0:00:33]} 6. O-O {[%emt 0:04:44]} Nc6 {[%emt 0:01:10]} 7. Ne5 {[%emt 0:08:28]} Bd7 {[%emt 0:01:00]} 8. Nxc6 {[%emt 0:06:33]} Bxc6 {[%emt 0:00:35]} 9. Bxc6+ {[%emt 0:00:06]} bxc6 {[%emt 0:00:08]} 10. Qa4 {[%emt 0:01:10]} Qb6 {[%emt 0:31:57]} 11. dxc5 {[%emt 0:00:39] E04: Open Catalan: 5 Nf3.} Bxc5 {[%emt 0:07:36]} 12. Qxc4 {[%emt 0:00:35]} Rd8 {[%emt 0:07:45]} 13. e3 {[%emt 0:02:59] White is slightly better.} O-O {[%emt 0:15:10] [#] The position is equal.} 14. a3 $146 {[%emt 0:03:51]} ({Predecessor:} 14. Nc3 Qb4 15. Qxb4 Bxb4 16. a3 Bxc3 17. bxc3 Rd3 18. Bb2 Ne4 19. Rfd1 Rfd8 20. Rxd3 Rxd3 {0-1 Helmich,J (1699)-Stoeckl,S (2096) Nittenau-ch op 15th 2015 (1)}) 14... Nd7 {[%emt 0:08:06]} 15. b4 {[%emt 0:08:49]} Bd6 {[%emt 0:03:28]} 16. Bb2 {[%emt 0:03:25]} a5 {[%emt 0:06:48][%cal Ra5b4]} 17. Nd2 {[%emt 0:07:22]} Be5 {[%emt 0:05:52]} 18. Rfb1 {[%emt 0:06:29]} Bxb2 {[%emt 0:01:29]} 19. Rxb2 {[%emt 0:00:04]} Ne5 {[%emt 0:01:11]} 20. Qc3 {[%emt 0:01:01]} Rxd2 {[%emt 0:05:03][%mdl 64] [#] Remove Defender, Decoy} 21. Qxe5 {[%emt 0:00:12]} (21. Rxd2 $5 Nf3+ $8 22. Kg2 Nxd2 23. Qxd2 $11) 21... Rxb2 {[%emt 0:00:47]} 22. Qxb2 {[%emt 0:00:03]} axb4 {[%emt 0:00:16]} 23. axb4 $11 {[%emt 0:00:16][%mdl 4096] Endgame KQR-KQR} h6 {[%emt 0:00:50]} 24. Rb1 {[%emt 0:03:50]} Rd8 {[%emt 0:00:51]} 25. Qc3 {[%emt 0:00:35]} Qb5 {[%emt 0:00:32]} 26. Rc1 {[%emt 0:01:10]} Rb8 {[%emt 0:00:11]} 27. Rd1 {[%emt 0:00:36]} Qxb4 {[%emt 0:00:59]} 28. Qxc6 {[%emt 0:01:19]} Qb6 {[%emt 0:00:28]} 29. Qe4 {[%emt 0:01:21]} Qb3 {[%emt 0:00:33]} 30. Rd3 {[%emt 0:01:33]} Qa2 {[%emt 0:00:21]} 31. Kg2 {[%emt 0:01:29]} Qa8 {[%emt 0:00:12]} 32. Qxa8 {[%emt 0:00:20]} Rxa8 {[%emt 0:00:04] An interesting draw.   Weighted Error Value: White=0.04 (flawless) /Black=0.05 (flawless)} 1/2-1/2

[Event "European Women-ch 2023"]
[Site "Petrovac"]
[Date "2023.03.25"]
[Round "7.8"]
[White "Tsolakidou, Stavroula"]
[Black "Sandu, Mihaela"]
[Result "1-0"]
[Annotator "TA"]
[ECO "C95"]
[WhiteElo "2358"]
[BlackElo "2211"]
[PlyCount "129"]
[EventDate "2023.03.15"]
[EventType "swiss"]
[EventCountry "MNE"]
[SourceTitle "playchess.com"]
[Source "ChessBase"]
[SourceQuality "1"]
[TimeControl "40/5400+30:1800+30"]

{[%evp 21,129,17,23,21,28,32,9,26,40,32,98,0,0,0,0,0,11,9,35,0,0,0,8,-6,-6,-8,0,0,16,-91,6,-104,-61,-53,0,-41,0,7,13,0,0,0,0,0,0,6,23,0,30,8,36,42,67,67,72,60,210,208,218,218,225,225,225,225,263,263,262,225,225,225,233,209,206,194,209,81,356,346,336,301,655,391,1139,1099,922,615,953,926,846,618,29966,29967,29947,29955,29975,29976,29976,29977,29983,29984,29980,29964,29965,29961,29963,29954,6091,5114,1272,1233]} 1. e4 {[%emt 0:00:03] Dragun/Macieja} e5 {[%emt 0:00:05]} 2. Nf3 {[%emt 0:00:06]} Nc6 {[%emt 0:00:03]} 3. Bb5 {[%emt 0:00:07]} a6 {[%emt 0:00:04]} 4. Ba4 {[%emt 0:00:06]} Nf6 {[%emt 0:00:05]} 5. O-O {[%emt 0:00:13]} Be7 {[%emt 0:00:10]} 6. Re1 {[%emt 0:00:18]} b5 {[%emt 0:00:37]} 7. Bb3 {[%emt 0:00:07]} d6 {[%emt 0:00:08]} 8. c3 {[%emt 0:00:09][%cal Bc2c3,Bc3c4][%mdl 32]} O-O {[%emt 0:00:23]} 9. h3 {[%emt 0:00:16]} Nb8 {[%emt 0:00:25]} 10. d4 {[%emt 0:00:28]} Nbd7 {[%emt 0:00:06]} 11. c4 {[%emt 0:00:30]} Bb7 {[%emt 0:00:32]} 12. Nc3 {[%emt 0:12:04] C95: Closed Ruy Lopez: Breyer Variation with 10 d4.} c6 {[%emt 0:01:41][%cal Bc7c6,Bc6c5][%mdl 32]} (12... exd4 {is interesting.} 13. Nxd4 Nc5 14. Nd5 Re8) 13. Qc2 {[%emt 0:02:42]} exd4 {[%emt 0:09:54]} 14. Nxd4 {[%emt 0:00:09] The position is equal.} b4 {[%emt 0:00:17]} 15. Na4 {[%emt 0:02:12] [#]} g6 $146 {[%emt 0:09:36]} (15... c5 $14 16. Nf5 Re8) ({Predecessor:} 15... c5 16. Nf5 Re8 17. Bf4 Bf8 18. f3 Ne5 19. Rad1 Qc7 20. Bg5 Re6 21. Ne3 Rae8 {1-0 Shirov,A (2665)-Dragun,K (2665) CZE-chT 1617 2016 (3.4)}) 16. Bh6 {[%emt 0:07:21] White is more active.} (16. c5 $1 $16) 16... c5 $1 $11 {[%emt 0:28:11]} 17. Bxf8 {[%emt 0:01:06]} Bxf8 {[%emt 0:00:03][%cal Be7f8,Bf8g7,Bg7e5][%mdl 32]} 18. Nf3 {[%emt 0:00:14]} Qe7 {[%emt 0:00:05]} 19. Qd1 {[%emt 0:06:33]} Nh5 {[%emt 0:18:02]} 20. Bc2 {[%emt 0:04:41]} Nf4 {[%emt 0:01:14]} 21. b3 {[%emt 0:02:29]} Re8 {[%emt 0:01:43]} 22. Nb2 {[%emt 0:03:42]} Bg7 {[%emt 0:00:30]} 23. Rb1 {[%emt 0:00:07]} Ne5 {[%emt 0:10:32]} 24. Nxe5 {[%emt 0:04:49]} Bxe5 {[%emt 0:01:18] A strong pair of Bishops.} 25. Qf3 {[%emt 0:04:30] Repels Bc3} (25. Nd3 $1 $11 {remains equal.}) 25... h5 {[%emt 0:01:01]} ({Better is} 25... f5 $17) 26. Nd1 {[%emt 0:15:37]} (26. Nd3 $11 Nxd3 27. Qxd3 (27. Bxd3 Qh4 $11)) 26... Qg5 {[%emt 0:02:22][%mdl 1024] Black has strong compensation.} 27. Ne3 {[%emt 0:02:29]} Bc8 {[%emt 0:00:39]} (27... Ne6 $1 $15 28. Qd1 Bc3 29. Qxd6 Nd4) 28. Kf1 {[%emt 0:01:15]} Ne6 {[%emt 0:01:31]} (28... Re6 $15 29. Nd5 Nxd5 30. exd5 Rf6) 29. Nd5 {[%emt 0:01:07]} Kg7 {[%emt 0:01:13]} (29... Nd4 $5 {[%cal Rd4f3]} 30. Qe3 Qh4 $14) 30. Bd3 {[%emt 0:01:21][%cal Bc2d3,Bd3e2,Be2f3][%mdl 32]} Qh4 {[%emt 0:01:15]} 31. g3 {[%emt 0:05:29]} Qxh3+ {[%emt 0:01:48]} 32. Qg2 {[%emt 0:00:04]} Qxg2+ {[%emt 0:02:08]} 33. Kxg2 {[%emt 0:00:04]} Bd4 {[%emt 0:01:35]} 34. f4 {[%emt 0:00:23]} Nd8 {[%emt 0:01:28]} 35. Be2 {[%emt 0:02:57]} f6 {[%emt 0:02:25]} 36. Rbd1 {[%emt 0:01:07]} Nc6 {[%emt 0:00:45]} 37. Bf3 {[%emt 0:00:45]} Nd8 {[%emt 0:03:37]} 38. Rh1 {[%emt 0:04:54][%cal Od5b4] Threatens to win with Nxb4!} a5 {[%emt 0:00:31] [#]} (38... Ne6 $1 $14) 39. Nc7 $1 $18 {[%emt 0:00:38]} ({Much less strong is} 39. f5 $6 gxf5 40. exf5 (40. Rxh5 fxe4 41. Be2 Nf7 $11) (40. Bxh5 Re5 $14) 40... Bxf5 $16) 39... Re7 {[%emt 0:00:32]} 40. Nb5 {[%emt 0:00:00][%csl LRd4,LRd6]} Ne6 {[%emt 0:00:00]} 41. Nxd6 {[%emt 0:00:43]} Bd7 {[%emt 0:01:41] [#]} 42. Bxh5 $1 {[%emt 0:24:50][%mdl 64] Deflection} gxh5 {[%emt 0:10:04]} 43. Nf5+ {[%emt 0:00:05]} (43. Rxh5 Nd8 $14) 43... Kf7 {[%emt 0:00:07][%cal Od7c6]} 44. Nxe7 {[%emt 0:00:06]} Kxe7 {[%emt 0:00:06]} 45. Rxh5 {[%emt 0:00:04]} Bc6 {[%emt 0:00:41] [#]} 46. Rd5 $1 {[%emt 0:00:15]} Nc7 {[%emt 0:08:19] [#]} (46... a4 47. Kf3) 47. Re1 $1 {[%emt 0:02:27]} a4 {[%emt 0:00:14]} (47... Be8 48. Rf5) 48. Kf3 {[%emt 0:05:28]} a3 $2 {[%emt 0:00:35][%mdl 8192]} (48... Bc3 $16 49. Rxc5 Bxe1 50. Rxc6 axb3 51. axb3 (51. Rxc7+ Kd6 $11) 51... Ne6) 49. Rh5 {[%emt 0:01:22]} Ne8 {[%emt 0:00:38]} 50. Rh7+ {[%emt 0:01:15]} Kd6 $2 {[%emt 0:01:57]} (50... Kd8 51. g4 Nd6) 51. Ra7 {[%emt 0:02:29] Black must now prevent g4.} Nc7 $2 {[%emt 0:03:08]} (51... f5 52. g4 fxe4+ 53. Kg3 e3) 52. Rh1 {[%emt 0:00:46]} ({Weaker is} 52. Rd1 f5 $18) 52... Ne6 {[%emt 0:00:28]} 53. Ra6 {[%emt 0:00:43]} Bc3 {[%emt 0:00:14]} 54. Rh7 {[%emt 0:01:22]} Nd4+ {[%emt 0:03:46]} 55. Kf2 {[%emt 0:00:06]} Ne6 {[%emt 0:00:18] [#]} 56. e5+ $1 {[%emt 0:01:23]} fxe5 {[%emt 0:02:13]} 57. f5 {[%emt 0:00:59][%cal Bf4f5,Bf5f6,Bf6f7][%mdl 32]} Nd4 {[%emt 0:00:59]} 58. f6 {[%emt 0:00:51]} Ne6 {[%emt 0:01:21]} 59. f7 {[%emt 0:00:31]} Bd4+ {[%emt 0:00:49]} 60. Ke2 {[%emt 0:00:38]} Nf8 {[%emt 0:00:26] [#]} 61. Rxc6+ $1 {[%emt 0:00:46][%mdl 512]} Kxc6 {[%emt 0:00:11]} 62. Rh8 {[%emt 0:00:09]} Kd7 {[%emt 0:00:17]} 63. Rxf8 {[%emt 0:00:22]} Ke7 {[%emt 0:00:03]} 64. Rc8 {[%emt 0:00:37]} Kxf7 {[%emt 0:00:04]} 65. Kf3 {[%emt 0:00:05] Weighted Error Value: White=0.44/Black=0.50} 1-0

[Event "European Women-ch 2023"]
[Site "Petrovac"]
[Date "2023.03.25"]
[Round "7.8"]
[White "Mkrtchyan, Mariam"]
[Black "Buksa, Nataliya"]
[Result "1/2-1/2"]
[Annotator "TA"]
[ECO "D35"]
[WhiteElo "2343"]
[BlackElo "2405"]
[PlyCount "45"]
[EventDate "2023.03.15"]
[EventType "swiss"]
[EventCountry "MNE"]
[SourceTitle "playchess.com"]
[Source "ChessBase"]
[SourceQuality "1"]
[TimeControl "40/5400+30:1800+30"]

{[%evp 12,45,32,37,39,31,58,0,0,0,0,0,0,0,0,0,0,0,8,-8,30,36,43,0,0,0,0,0,0,0,0,0,0,0,0,0]} 1. d4 {[%emt 0:00:03]} Nf6 {[%emt 0:02:20]} 2. c4 {[%emt 0:00:09]} e6 {[%emt 0:00:02]} 3. Nc3 {[%emt 0:00:17]} d5 {[%emt 0:00:26]} 4. cxd5 {[%emt 0:00:12]} exd5 {[%emt 0:00:04]} 5. Bg5 {[%emt 0:00:06][%cal Bc1g5,Bg5h4,Bh4g3][%mdl 32]} Bb4 {[%emt 0:00:12]} 6. e3 {[%emt 0:00:07]} h6 {[%emt 0:00:08]} 7. Bh4 {[%emt 0:00:11]} g5 {[%emt 0:00:05] D35: Queen's Gambit Declined: Exchange Variation.} 8. Bg3 {[%emt 0:00:04]} h5 {[%emt 0:00:04][%cal Bh6h5,Bh5h4][%mdl 32]} 9. f3 {[%emt 0:18:17]} (9. h4 $14) 9... h4 $11 {[%emt 0:04:30]} 10. Bf2 {[%emt 0:00:31]} Bf5 {[%emt 0:00:39] [#]} 11. Bd3 $146 {[%emt 0:03:21]} ({Predecessor:} 11. Qa4+ Nc6 12. Bb5 Bxc3+ 13. bxc3 O-O 14. Rd1 Qd6 15. Ne2 a6 16. Bd3 Bxd3 17. Rxd3 {0-1 Findlay,M (1950)-Ginther,R (1929) IECG CB.2002.0.00060 email}) 11... Qd7 {[%emt 0:08:24]} 12. Nge2 {[%emt 0:02:10][%cal Bg1e2,Be2c3,Bc3a4,Ba4c5][%mdl 32]} Nc6 {[%emt 0:02:26][%cal Bb8c6,Bc6d4,Bd4e6][%mdl 32]} 13. a3 {[%emt 0:06:08]} Bxc3+ {[%emt 0:31:47]} 14. Nxc3 {[%emt 0:00:23]} O-O-O {[%emt 0:06:23]} 15. Na4 {[%emt 0:08:08] [#] Nc5 is the strong threat.} (15. Bxf5 {simplifies} Qxf5 16. h3 Kb8 17. O-O) 15... Nxd4 {[%emt 0:08:59] White must now prevent ...Bxd3.} 16. Nc5 {[%emt 0:26:54]} Qe7 {[%emt 0:00:04]} 17. Rc1 {[%emt 0:00:20] Qa4 would be deadly.} (17. Qa4 $5 {[%cal Ra4a7]} Bxd3 18. Qxa7 Nc2+ 19. Kd2 $14) 17... Bxd3 {[%emt 0:07:59] The position is equal.} 18. Qxd3 {[%emt 0:00:20]} Ne6 {[%emt 0:00:05] A dynamic duo of knights.} 19. Nxb7 {[%emt 0:03:28][%mdl 64] [#] Decoy} Kxb7 {[%emt 0:00:15]} 20. Qb5+ {[%emt 0:00:06]} Kc8 {[%emt 0:00:07] Threatens to win with ...Rd6.} 21. Qa6+ {[%emt 0:00:04]} Kb8 {[%emt 0:00:03] Strongly threatening ...c5.} 22. Qb5+ {[%emt 0:01:29]} Kc8 {[%emt 0:00:04] Hoping for ...Rd6.} 23. Qa6+ {[%emt 0:00:12] Weighted Error Value: White=0.09 (flawless) /Black=0.04 (flawless)} 1/2-1/2

[Event "European Women-ch 2023"]
[Site "Petrovac"]
[Date "2023.03.25"]
[Round "7.8"]
[White "Pirvulescu, Ekaterina"]
[Black "Berke, Ana"]
[Result "1/2-1/2"]
[Annotator "TA"]
[ECO "B42"]
[WhiteElo "2032"]
[BlackElo "2107"]
[PlyCount "120"]
[EventDate "2023.03.15"]
[EventType "swiss"]
[EventCountry "MNE"]
[SourceTitle "playchess.com"]
[Source "ChessBase"]
[SourceQuality "1"]
[TimeControl "40/5400+30:1800+30"]

{[%evp 13,120,42,45,29,58,57,87,85,120,130,120,114,137,34,41,24,53,31,23,12,20,10,27,27,31,21,16,32,46,36,47,45,66,64,82,0,8,-7,-7,-8,-6,-9,0,0,0,0,0,0,0,0,0,0,0,0,0,0,0,-44,-34,-63,-18,-18,-18,-18,-18,-18,-18,-80,-27,-42,-34,-77,0,0,0,0,0,0,0,0,0,0,0,0,0,0,0,0,0,0,0,0,0,0,0,0,0,0,0,0,0,0,0,0,0,0,0,0,0]} 1. e4 {[%emt 0:00:05]} c5 {[%emt 0:00:10]} 2. Nf3 {[%emt 0:00:06]} e6 {[%emt 0:00:07]} 3. d4 {[%emt 0:00:06]} cxd4 {[%emt 0:00:11]} 4. Nxd4 {[%emt 0:00:04]} a6 {[%emt 0:00:05]} 5. Bd3 {[%emt 0:00:59]} Nc6 {[%emt 0:00:15]} 6. Nxc6 {[%emt 0:01:54]} bxc6 {[%emt 0:00:51]} 7. O-O {[%emt 0:01:01]} Qc7 {[%emt 0:00:34]} 8. Qe2 {[%emt 0:03:49] B42: Sicilian: Kan Variation: 5 Bd3.} e5 {[%emt 0:05:41]} 9. f4 {[%emt 0:09:10] [#]} Bc5+ $146 {[%emt 0:00:57]} ({Predecessor:} 9... d6 10. Nd2 Be7 11. fxe5 dxe5 12. Nc4 Nf6 13. Be3 Be6 14. a4 a5 15. Kh1 O-O {1-0 Zhou,L (2018)-Lopez Mijail,N (2103) Collado Villalba op 38th 2021 (4)}) 10. Kh1 $1 {[%emt 0:01:24] White is better.} d6 {[%emt 0:00:21]} 11. fxe5 {[%emt 0:04:18]} dxe5 {[%emt 0:00:27] [#]} 12. Bc4 $1 {[%emt 0:00:47]} Nf6 {[%emt 0:05:08] [#]} 13. Bg5 {[%emt 0:02:50]} ({Better is} 13. Bh6 $1 $16 {[%cal Rh6g7]} Rg8 14. Nc3 {[%mdl 64] Remove Defender}) 13... Be7 $1 $14 {[%emt 0:05:59]} 14. Nc3 {[%emt 0:04:17][%cal Bb1c3,Bc3d1,Bd1e3][%mdl 32]} O-O {[%emt 0:02:31]} 15. Bxf6 {[%emt 0:12:02]} Bxf6 {[%emt 0:00:10]} 16. Nd1 {[%emt 0:01:23]} Qe7 {[%emt 0:02:56]} 17. Ne3 {[%emt 0:01:59]} g6 {[%emt 0:00:32]} 18. Rf3 $36 {[%emt 0:06:03][%mdl 2048] White is pushing.} Bg5 {[%emt 0:07:36]} 19. Raf1 {[%emt 0:04:03]} Be6 {[%emt 0:05:46]} 20. b3 {[%emt 0:05:19]} Bxe3 {[%emt 0:04:18]} 21. Rxe3 {[%emt 0:00:30]} a5 {[%emt 0:00:17]} 22. a4 {[%emt 0:02:20]} Rad8 {[%emt 0:00:57]} 23. Bxe6 {[%emt 0:02:23]} Qxe6 {[%emt 0:00:20]} 24. Rd3 {[%emt 0:06:07]} ({White should play} 24. h3 $16) 24... Rd4 $11 {[%emt 0:02:15]} 25. Rxd4 {[%emt 0:12:30]} exd4 {[%emt 0:00:06][%mdl 4096] Endgame KQR-KQR} 26. Re1 {[%emt 0:00:48]} Re8 {[%emt 0:01:48]} 27. Qa6 {[%emt 0:03:02]} Qe5 {[%emt 0:05:15]} (27... Qd5 {is interesting.} 28. Qa7 Re5 29. Kg1 Qc5) 28. Qxc6 {[%emt 0:00:55]} f5 {[%emt 0:06:56][%cal Rf5e4]} 29. Qc4+ {[%emt 0:00:51]} Kg7 {[%emt 0:03:46]} 30. Rd1 {[%emt 0:02:00]} fxe4 {[%emt 0:05:48]} 31. Qxd4 {[%emt 0:01:45]} Qxd4 {[%emt 0:00:56]} 32. Rxd4 {[%emt 0:00:04] KR-KR} e3 {[%emt 0:00:06] ( -> ...e2)} 33. Rd1 {[%emt 0:00:04]} Rc8 {[%emt 0:03:31]} 34. c4 {[%emt 0:05:25] Hoping for Kg1.} Rb8 {[%emt 0:00:13]} 35. Rc1 {[%emt 0:03:37]} Rxb3 {[%emt 0:02:50]} 36. c5 {[%emt 0:01:05]} e2 {[%emt 0:00:39] And now ...Rd3 would win.} 37. Kg1 {[%emt 0:00:03] [#] Kf2 is the strong threat.} Rc3 $1 {[%emt 0:00:49][%mdl 64] Deflection, Back Rank, Promotion} 38. Re1 {[%emt 0:00:02]} Rxc5 {[%emt 0:00:39]} 39. Rxe2 {[%emt 0:00:11]} Rc4 {[%emt 0:01:09][%cal Og7f6]} 40. Ra2 {[%emt 0:00:00]} (40. Re7+ $1 $11 {remains equal.} Kg8 41. Kf2) 40... g5 {[%emt 0:00:00]} (40... Kf7 $17) 41. Kf2 {[%emt 0:04:39]} Kf6 {[%emt 0:01:47]} 42. Ke3 {[%emt 0:00:42]} g4 {[%emt 0:00:37]} ({Black should try} 42... h5 $17) 43. g3 {[%emt 0:03:29] The position is equal.} h5 {[%emt 0:01:21]} 44. Kd3 {[%emt 0:02:34]} Rb4 {[%emt 0:02:00]} 45. Rc2 {[%emt 0:01:24]} Rxa4 {[%emt 0:00:54]} 46. Rc6+ {[%emt 0:00:27]} Kg7 {[%emt 0:05:59]} 47. Rc7+ {[%emt 0:01:49]} Kg8 {[%emt 0:01:20]} 48. Rc5 {[%emt 0:01:59]} h4 {[%emt 0:00:44]} 49. Rg5+ {[%emt 0:02:56]} Kf7 {[%emt 0:00:58] White must now prevent ...hxg3.} 50. gxh4 {[%emt 0:00:12]} Kf6 {[%emt 0:00:13]} 51. Kc3 {[%emt 0:00:59]} Ra3+ {[%emt 0:03:16]} 52. Kb2 {[%emt 0:01:43]} Ra4 {[%emt 0:00:27]} 53. Kb3 {[%emt 0:03:21]} Rf4 {[%emt 0:01:23]} 54. Ka3 {[%emt 0:04:54]} Rf3+ {[%emt 0:01:21]} 55. Ka4 {[%emt 0:00:42]} Rf4+ {[%emt 0:00:10]} 56. Ka3 {[%emt 0:00:10]} a4 {[%emt 0:00:32]} 57. Ka2 {[%emt 0:00:19]} Re4 {[%emt 0:03:02]} 58. Ka3 {[%emt 0:00:18]} Rd4 {[%emt 0:00:13]} 59. Ka2 $1 {[%emt 0:00:14]} Rf4 {[%emt 0:01:18]} 60. Ka3 {[%emt 0:00:09]} Rd4 {[%emt 0:00:06] Weighted Error Value: White=0.11 (very precise) /Black=0.06 (flawless)} 1/2-1/2